[Event "Titled Tuesday Blitz July 4 Early 2023"]
[White "Duarte, Leonardo"]
[Black "Bruedigam, Martin"]
[WhiteFideId "110582"]
[BlackFideId "24608033"]
[WhiteElo "2383"]
[BlackElo "2535"]
[Result "0-1"]
[Round "6"]
[TimeControl "180+2"]
[Date "2023.07.04"]
[WhiteClock "0:00:11"]
[BlackClock "0:00:22"]
[Board "135"]

1. e4 {[%clk 0:03:00]}  e5 {[%clk 0:02:59]} 2. Nf3 {[%clk 0:03:01]}  Nc6 {[%clk 0:02:59]} 3. Bc4 {[%clk 0:03:01]}  Bc5 {[%clk 0:03:00]} 4. c3 {[%clk 0:03:01]}  Nf6 {[%clk 0:03:00]} 5. d3 {[%clk 0:03:02]}  a6 {[%clk 0:02:59]} 6. O-O {[%clk 0:03:02]}  d6 {[%clk 0:02:58]} 7. a4 {[%clk 0:03:00]}  Ba7 {[%clk 0:02:57]} 8. Re1 {[%clk 0:02:58]}  O-O {[%clk 0:02:56]} 9. h3 {[%clk 0:02:57]}  Ne7 {[%clk 0:02:57]} 10. d4 {[%clk 0:02:30]}  Ng6 {[%clk 0:02:57]} 11. Bd3 {[%clk 0:02:17]}  h6 {[%clk 0:02:56]} 12. Nbd2 {[%clk 0:02:13]}  Re8 {[%clk 0:02:51]} 13. Nf1 {[%clk 0:02:12]}  c5 {[%clk 0:02:33]} 14. Bc2 {[%clk 0:01:45]}  b5 {[%clk 0:02:21]} 15. Ng3 {[%clk 0:01:39]}  Qc7 {[%clk 0:02:12]} 16. Be3 {[%clk 0:01:34]}  Bd7 {[%clk 0:02:08]} 17. Qd2 {[%clk 0:00:46]}  Kh7 {[%clk 0:02:03]} 18. Red1 {[%clk 0:00:40]}  Bb6 {[%clk 0:02:02]} 19. dxc5 {[%clk 0:00:37]}  dxc5 {[%clk 0:01:58]} 20. Qd6 {[%clk 0:00:24]}  Qxd6 {[%clk 0:01:46]} 21. Rxd6 {[%clk 0:00:23]}  Bc7 {[%clk 0:01:39]} 22. Rd2 {[%clk 0:00:22]}  c4 {[%clk 0:01:36]} 23. Rad1 {[%clk 0:00:16]}  Bc6 {[%clk 0:01:36]} 24. Nf5 {[%clk 0:00:10]}  Kg8 {[%clk 0:01:29]} 25. Nd6 {[%clk 0:00:10]}  Red8 {[%clk 0:01:21]} 26. h4 {[%clk 0:00:06]}  Ng4 {[%clk 0:01:18]} 27. Bc5 {[%clk 0:00:06]}  Nf8 {[%clk 0:01:14]} 28. Ba3 {[%clk 0:00:04]}  Ne6 {[%clk 0:01:13]} 29. g3 {[%clk 0:00:03]}  h5 {[%clk 0:01:11]} 30. Kg2 {[%clk 0:00:04]}  Rd7 {[%clk 0:01:08]} 31. Nf5 {[%clk 0:00:03]}  Rxd2 {[%clk 0:00:59]} 32. Rxd2 {[%clk 0:00:04]}  Kh7 {[%clk 0:00:54]} 33. Ne7 {[%clk 0:00:05]}  Be8 {[%clk 0:00:52]} 34. Nd5 {[%clk 0:00:05]}  Bd8 {[%clk 0:00:49]} 35. Ne3 {[%clk 0:00:05]}  Nxe3+ {[%clk 0:00:48]} 36. fxe3 {[%clk 0:00:06]}  f6 {[%clk 0:00:44]} 37. Bd1 {[%clk 0:00:04]}  Bc6 {[%clk 0:00:42]} 38. Rd6 {[%clk 0:00:04]}  Bxe4 {[%clk 0:00:25]} 39. Rxe6 {[%clk 0:00:05]}  Bc7 {[%clk 0:00:23]} 40. Re7 {[%clk 0:00:04]}  Bb6 {[%clk 0:00:24]} 41. Rd7 {[%clk 0:00:04]}  Bxe3 {[%clk 0:00:23]} 42. Be2 {[%clk 0:00:04]}  Rb8 {[%clk 0:00:21]} 43. axb5 {[%clk 0:00:04]}  axb5 {[%clk 0:00:22]} 44. Bb4 {[%clk 0:00:05]}  Ra8 {[%clk 0:00:21]} 45. Ba3 {[%clk 0:00:05]}  b4 {[%clk 0:00:19]} 46. cxb4 {[%clk 0:00:05]}  c3 {[%clk 0:00:20]} 47. b5 {[%clk 0:00:05]}  c2 {[%clk 0:00:20]} 48. Rc7 {[%clk 0:00:03]}  c1=Q {[%clk 0:00:19]} 49. Rxc1 {[%clk 0:00:03]}  Bxc1 {[%clk 0:00:20]} 50. b6 {[%clk 0:00:03]}  Rb8 {[%clk 0:00:21]} 51. Bc5 {[%clk 0:00:04]}  Bxb2 {[%clk 0:00:19]} 52. Kf2 {[%clk 0:00:04]}  Bxf3 {[%clk 0:00:20]} 53. Bxf3 {[%clk 0:00:04]}  Bd4+ {[%clk 0:00:18]} 54. Bxd4 {[%clk 0:00:04]}  exd4 {[%clk 0:00:19]} 55. b7 {[%clk 0:00:05]}  Kg8 {[%clk 0:00:20]} 56. Ke2 {[%clk 0:00:06]}  Kf7 {[%clk 0:00:21]} 57. Kd3 {[%clk 0:00:06]}  Ke6 {[%clk 0:00:21]} 58. Kxd4 {[%clk 0:00:07]}  Kd6 {[%clk 0:00:21]} 59. Ke3 {[%clk 0:00:07]}  Kc7 {[%clk 0:00:20]} 60. Kf4 {[%clk 0:00:07]}  g6 {[%clk 0:00:20]} 61. g4 {[%clk 0:00:08]}  hxg4 {[%clk 0:00:19]} 62. Kxg4 {[%clk 0:00:08]}  Rh8 {[%clk 0:00:19]} 63. Kg3 {[%clk 0:00:09]}  Rh6 {[%clk 0:00:18]} 64. Be4 {[%clk 0:00:09]}  Kb8 {[%clk 0:00:19]} 65. Bf3 {[%clk 0:00:09]}  Rh7 {[%clk 0:00:18]} 66. Be4 {[%clk 0:00:10]}  Rg7 {[%clk 0:00:19]} 67. Bf3 {[%clk 0:00:10]}  Rxb7 {[%clk 0:00:18]} 68. Bxb7 {[%clk 0:00:10]}  Kxb7 {[%clk 0:00:19]} 69. Kf4 {[%clk 0:00:10]}  Kc6 {[%clk 0:00:20]} 70. h5 {[%clk 0:00:10]}  gxh5 {[%clk 0:00:20]} 71. Kf5 {[%clk 0:00:11]}  h4 {[%clk 0:00:20]} 72. Kg4 {[%clk 0:00:11]}  Kd5 {[%clk 0:00:21]} 73. Kxh4 {[%clk 0:00:11]}  Ke4 {[%clk 0:00:21]} 74. Kg3 {[%clk 0:00:12]}  f5 {[%clk 0:00:21]} 75. Kg2 {[%clk 0:00:12]}  Ke3 {[%clk 0:00:21]} 76. Kg1 {[%clk 0:00:12]}  Ke2 {[%clk 0:00:21]} 77. Kg2 {[%clk 0:00:11]}  f4 {[%clk 0:00:22]} 0-1


[Site "https://www.chess.com"]

[Event "Titled Tuesday Blitz July 4 Early 2023"]
[White "Topalov, Aleksandar"]
[Black "Karamsetty, Jeevan"]
[WhiteFideId "925659"]
[BlackFideId "2025337"]
[WhiteElo "2378"]
[BlackElo "2527"]
[Result "1-0"]
[Round "6"]
[TimeControl "180+2"]
[Date "2023.07.04"]
[WhiteClock "0:00:07"]
[BlackClock "0:00:14"]
[Board "137"]

1. b3 {[%clk 0:03:00]}  e5 {[%clk 0:02:57]} 2. Bb2 {[%clk 0:03:01]}  Nc6 {[%clk 0:02:57]} 3. c4 {[%clk 0:02:57]}  d6 {[%clk 0:02:56]} 4. e3 {[%clk 0:02:56]}  Nf6 {[%clk 0:02:56]} 5. Nf3 {[%clk 0:02:56]}  Be7 {[%clk 0:02:54]} 6. d4 {[%clk 0:02:57]}  e4 {[%clk 0:02:54]} 7. d5 {[%clk 0:02:57]}  exf3 {[%clk 0:02:47]} 8. dxc6 {[%clk 0:02:57]}  fxg2 {[%clk 0:02:46]} 9. Bxg2 {[%clk 0:02:57]}  Rb8 {[%clk 0:02:46]} 10. Nc3 {[%clk 0:02:52]}  bxc6 {[%clk 0:02:43]} 11. Bxc6+ {[%clk 0:02:51]}  Bd7 {[%clk 0:02:43]} 12. Bf3 {[%clk 0:02:49]}  Qc8 {[%clk 0:02:35]} 13. Rg1 {[%clk 0:02:47]}  Rg8 {[%clk 0:02:23]} 14. Qd4 {[%clk 0:02:38]}  Bf5 {[%clk 0:02:05]} 15. O-O-O {[%clk 0:02:31]}  Qa6 {[%clk 0:02:01]} 16. e4 {[%clk 0:02:23]}  Bg6 {[%clk 0:01:57]} 17. Kb1 {[%clk 0:02:07]}  Nd7 {[%clk 0:01:56]} 18. Nd5 {[%clk 0:01:59]}  Bd8 {[%clk 0:01:39]} 19. Bh1 {[%clk 0:01:41]}  f6 {[%clk 0:01:26]} 20. f4 {[%clk 0:01:36]}  Bf7 {[%clk 0:01:26]} 21. Rde1 {[%clk 0:01:26]}  c6 {[%clk 0:01:19]} 22. Nc3 {[%clk 0:01:16]}  Bb6 {[%clk 0:01:19]} 23. Qxd6 {[%clk 0:01:16]}  Bc5 {[%clk 0:01:16]} 24. Qd3 {[%clk 0:01:07]}  Bxg1 {[%clk 0:01:16]} 25. Rxg1 {[%clk 0:01:07]}  Nc5 {[%clk 0:01:07]} 26. Qc2 {[%clk 0:01:03]}  Qb6 {[%clk 0:00:57]} 27. Rd1 {[%clk 0:00:52]}  Rd8 {[%clk 0:00:53]} 28. Rxd8+ {[%clk 0:00:42]}  Qxd8 {[%clk 0:00:54]} 29. Bf3 {[%clk 0:00:36]}  Qd3 {[%clk 0:00:51]} 30. Be2 {[%clk 0:00:35]}  Qxc2+ {[%clk 0:00:51]} 31. Kxc2 {[%clk 0:00:36]}  Ne6 {[%clk 0:00:47]} 32. f5 {[%clk 0:00:33]}  Nd4+ {[%clk 0:00:47]} 33. Kd3 {[%clk 0:00:33]}  Nxe2 {[%clk 0:00:46]} 34. Kxe2 {[%clk 0:00:33]}  Kd7 {[%clk 0:00:46]} 35. Na4 {[%clk 0:00:32]}  Bh5+ {[%clk 0:00:43]} 36. Ke3 {[%clk 0:00:31]}  Kc7 {[%clk 0:00:43]} 37. Bd4 {[%clk 0:00:30]}  Ra8 {[%clk 0:00:36]} 38. Nc5 {[%clk 0:00:29]}  Bf7 {[%clk 0:00:36]} 39. e5 {[%clk 0:00:25]}  fxe5 {[%clk 0:00:34]} 40. Bxe5+ {[%clk 0:00:26]}  Kc8 {[%clk 0:00:32]} 41. Bxg7 {[%clk 0:00:25]}  a5 {[%clk 0:00:32]} 42. Kd4 {[%clk 0:00:19]}  Kd8 {[%clk 0:00:26]} 43. Ke5 {[%clk 0:00:18]}  Ke8 {[%clk 0:00:22]} 44. Kd6 {[%clk 0:00:18]}  Rc8 {[%clk 0:00:11]} 45. Nb7 {[%clk 0:00:14]}  Bh5 {[%clk 0:00:10]} 46. Kc5 {[%clk 0:00:14]}  Rc7 {[%clk 0:00:08]} 47. Nxa5 {[%clk 0:00:14]}  Rxg7 {[%clk 0:00:07]} 48. Nxc6 {[%clk 0:00:13]}  Bf3 {[%clk 0:00:07]} 49. Ne5 {[%clk 0:00:11]}  Be4 {[%clk 0:00:06]} 50. b4 {[%clk 0:00:11]}  Ra7 {[%clk 0:00:04]} 51. f6 {[%clk 0:00:08]}  Rxa2 {[%clk 0:00:04]} 52. b5 {[%clk 0:00:08]}  Bg2 {[%clk 0:00:02]} 53. f7+ {[%clk 0:00:08]}  Ke7 {[%clk 0:00:02]} 54. Kb6 {[%clk 0:00:09]}  Re2 {[%clk 0:00:02]} 55. Nc6+ {[%clk 0:00:06]}  Bxc6 {[%clk 0:00:02]} 56. bxc6 {[%clk 0:00:06]}  Re6 {[%clk 0:00:02]} 57. Kb7 {[%clk 0:00:06]}  Kxf7 {[%clk 0:00:01]} 58. c7 {[%clk 0:00:07]}  Re7 {[%clk 0:00:02]} 59. Kb8 {[%clk 0:00:06]}  Rxc7 {[%clk 0:00:02]} 60. Kxc7 {[%clk 0:00:06]}  Ke6 {[%clk 0:00:03]} 61. Kb6 {[%clk 0:00:04]}  h5 {[%clk 0:00:04]} 62. c5 {[%clk 0:00:04]}  h4 {[%clk 0:00:05]} 63. c6 {[%clk 0:00:04]}  Kf5 {[%clk 0:00:06]} 64. c7 {[%clk 0:00:04]}  Kf4 {[%clk 0:00:07]} 65. c8=Q {[%clk 0:00:05]}  Kf3 {[%clk 0:00:07]} 66. Qg8 {[%clk 0:00:05]}  Kf4 {[%clk 0:00:08]} 67. h3 {[%clk 0:00:05]}  Kf3 {[%clk 0:00:08]} 68. Qg4+ {[%clk 0:00:05]}  Kf2 {[%clk 0:00:08]} 69. Qxh4+ {[%clk 0:00:06]}  Kg2 {[%clk 0:00:09]} 70. Qg4+ {[%clk 0:00:06]}  Kh2 {[%clk 0:00:10]} 71. h4 {[%clk 0:00:07]}  Kh1 {[%clk 0:00:11]} 72. h5 {[%clk 0:00:07]}  Kh2 {[%clk 0:00:12]} 73. h6 {[%clk 0:00:07]}  Kh1 {[%clk 0:00:13]} 74. h7 {[%clk 0:00:08]}  Kh2 {[%clk 0:00:14]} 75. h8=Q# {[%clk 0:00:07]} 1-0


[Site "https://www.chess.com"]

[Event "Titled Tuesday Blitz July 4 Early 2023"]
[White "Yelisieiev, Yevhenii"]
[Black "Fisabilillah, Ummi"]
[WhiteFideId "14139642"]
[BlackFideId "7104804"]
[WhiteElo "2526"]
[BlackElo "2369"]
[Result "1-0"]
[Round "6"]
[TimeControl "180+2"]
[Date "2023.07.04"]
[WhiteClock "0:00:20"]
[BlackClock "0:00:28"]
[Board "140"]

1. d4 {[%clk 0:03:00]}  Nf6 {[%clk 0:02:58]} 2. Nf3 {[%clk 0:02:59]}  d5 {[%clk 0:02:57]} 3. c3 {[%clk 0:02:59]}  c6 {[%clk 0:02:56]} 4. g3 {[%clk 0:02:58]}  Bf5 {[%clk 0:02:56]} 5. Bg2 {[%clk 0:02:58]}  Nbd7 {[%clk 0:02:56]} 6. O-O {[%clk 0:02:59]}  e6 {[%clk 0:02:57]} 7. a4 {[%clk 0:02:59]}  a5 {[%clk 0:02:56]} 8. Qb3 {[%clk 0:02:58]}  Qb6 {[%clk 0:02:53]} 9. Nbd2 {[%clk 0:02:58]}  Bd6 {[%clk 0:02:48]} 10. h3 {[%clk 0:02:54]}  h6 {[%clk 0:02:46]} 11. Ne1 {[%clk 0:02:50]}  O-O {[%clk 0:02:44]} 12. Nd3 {[%clk 0:02:49]}  Qxb3 {[%clk 0:02:34]} 13. Nxb3 {[%clk 0:02:49]}  e5 {[%clk 0:02:35]} 14. dxe5 {[%clk 0:02:49]}  Nxe5 {[%clk 0:02:35]} 15. Nxe5 {[%clk 0:02:46]}  Bxe5 {[%clk 0:02:36]} 16. Be3 {[%clk 0:02:46]}  Rfe8 {[%clk 0:02:31]} 17. Bd4 {[%clk 0:02:38]}  Bc2 {[%clk 0:02:17]} 18. Bxe5 {[%clk 0:02:37]}  Rxe5 {[%clk 0:02:17]} 19. Nd4 {[%clk 0:02:36]}  Be4 {[%clk 0:02:17]} 20. Bxe4 {[%clk 0:02:36]}  Nxe4 {[%clk 0:02:12]} 21. e3 {[%clk 0:02:35]}  Nd2 {[%clk 0:02:06]} 22. Rfd1 {[%clk 0:02:32]}  Nc4 {[%clk 0:02:06]} 23. b3 {[%clk 0:02:31]}  Nb6 {[%clk 0:02:03]} 24. Kf1 {[%clk 0:02:05]}  Kf8 {[%clk 0:01:58]} 25. Ke2 {[%clk 0:02:05]}  g6 {[%clk 0:01:51]} 26. Kd3 {[%clk 0:02:05]}  h5 {[%clk 0:01:51]} 27. h4 {[%clk 0:02:02]}  Re7 {[%clk 0:01:46]} 28. Re1 {[%clk 0:02:01]}  Nd7 {[%clk 0:01:46]} 29. b4 {[%clk 0:01:58]}  Ne5+ {[%clk 0:01:46]} 30. Kc2 {[%clk 0:01:58]}  Nc4 {[%clk 0:01:45]} 31. Reb1 {[%clk 0:01:55]}  Ree8 {[%clk 0:01:40]} 32. b5 {[%clk 0:01:51]}  c5 {[%clk 0:01:40]} 33. Nb3 {[%clk 0:01:51]}  b6 {[%clk 0:01:41]} 34. Rd1 {[%clk 0:01:51]}  Rad8 {[%clk 0:01:39]} 35. Nd2 {[%clk 0:01:48]}  Ne5 {[%clk 0:01:36]} 36. Nf1 {[%clk 0:01:37]}  Ng4 {[%clk 0:01:35]} 37. Rd2 {[%clk 0:01:36]}  Re7 {[%clk 0:01:32]} 38. Rad1 {[%clk 0:01:36]}  Red7 {[%clk 0:01:28]} 39. e4 {[%clk 0:01:23]}  Nf6 {[%clk 0:01:24]} 40. exd5 {[%clk 0:01:09]}  Nxd5 {[%clk 0:01:20]} 41. Kb3 {[%clk 0:01:07]}  Ke7 {[%clk 0:01:20]} 42. Re2+ {[%clk 0:01:02]}  Kf8 {[%clk 0:01:19]} 43. Red2 {[%clk 0:00:49]}  Ke7 {[%clk 0:01:19]} 44. Nh2 {[%clk 0:00:46]}  Nf6 {[%clk 0:01:17]} 45. Nf3 {[%clk 0:00:43]}  Rxd2 {[%clk 0:01:08]} 46. Rxd2 {[%clk 0:00:44]}  Rxd2 {[%clk 0:01:05]} 47. Nxd2 {[%clk 0:00:45]}  Ng4 {[%clk 0:01:04]} 48. f3 {[%clk 0:00:43]}  Ne5 {[%clk 0:01:04]} 49. f4 {[%clk 0:00:40]}  Ng4 {[%clk 0:01:00]} 50. Nc4 {[%clk 0:00:39]}  Nf6 {[%clk 0:00:56]} 51. Nxb6 {[%clk 0:00:38]}  Ne4 {[%clk 0:00:56]} 52. Nc4 {[%clk 0:00:34]}  Nxg3 {[%clk 0:00:56]} 53. Nxa5 {[%clk 0:00:35]}  Ne2 {[%clk 0:00:53]} 54. Nb7 {[%clk 0:00:26]}  Nxf4 {[%clk 0:00:48]} 55. a5 {[%clk 0:00:25]}  Kd7 {[%clk 0:00:40]} 56. Nxc5+ {[%clk 0:00:24]}  Kc7 {[%clk 0:00:41]} 57. b6+ {[%clk 0:00:23]}  Kb8 {[%clk 0:00:34]} 58. a6 {[%clk 0:00:23]}  Nd5 {[%clk 0:00:34]} 59. Nd7+ {[%clk 0:00:20]}  Kc8 {[%clk 0:00:28]} 60. b7+ {[%clk 0:00:20]} 1-0


[Site "https://www.chess.com"]

[Event "Titled Tuesday Blitz July 4 Early 2023"]
[White "Korpics, Zsolt"]
[Black "Womacka, Mathias"]
[WhiteFideId "705241"]
[BlackFideId "4611390"]
[WhiteElo "2356"]
[BlackElo "2516"]
[Result "0-1"]
[Round "6"]
[TimeControl "180+2"]
[Date "2023.07.04"]
[WhiteClock "0:00:05"]
[BlackClock "0:00:16"]
[Board "148"]

1. e4 {[%clk 0:03:00]}  c5 {[%clk 0:02:59]} 2. Nf3 {[%clk 0:03:00]}  d6 {[%clk 0:02:59]} 3. d4 {[%clk 0:03:00]}  cxd4 {[%clk 0:03:00]} 4. Nxd4 {[%clk 0:03:01]}  Nf6 {[%clk 0:03:00]} 5. Nc3 {[%clk 0:03:00]}  a6 {[%clk 0:03:00]} 6. h3 {[%clk 0:03:00]}  e6 {[%clk 0:02:57]} 7. g4 {[%clk 0:03:00]}  b5 {[%clk 0:02:57]} 8. g5 {[%clk 0:02:56]}  Nfd7 {[%clk 0:02:55]} 9. Bg2 {[%clk 0:02:54]}  Bb7 {[%clk 0:02:55]} 10. O-O {[%clk 0:02:46]}  Nc6 {[%clk 0:02:53]} 11. Be3 {[%clk 0:02:41]}  Be7 {[%clk 0:02:50]} 12. h4 {[%clk 0:02:33]}  Rc8 {[%clk 0:02:42]} 13. Qh5 {[%clk 0:02:01]}  O-O {[%clk 0:02:29]} 14. Qe2 {[%clk 0:01:36]}  Nb6 {[%clk 0:02:24]} 15. Nxc6 {[%clk 0:01:31]}  Bxc6 {[%clk 0:02:23]} 16. b3 {[%clk 0:01:23]}  Bb7 {[%clk 0:02:22]} 17. Nd1 {[%clk 0:01:19]}  Qc7 {[%clk 0:02:16]} 18. Rc1 {[%clk 0:01:17]}  Rfe8 {[%clk 0:02:03]} 19. f4 {[%clk 0:01:14]}  d5 {[%clk 0:01:44]} 20. e5 {[%clk 0:01:07]}  Ba3 {[%clk 0:01:41]} 21. Rb1 {[%clk 0:00:58]}  Bc5 {[%clk 0:01:41]} 22. c3 {[%clk 0:00:51]}  Red8 {[%clk 0:01:32]} 23. Bd4 {[%clk 0:00:50]}  Bxd4+ {[%clk 0:01:32]} 24. cxd4 {[%clk 0:00:50]}  b4 {[%clk 0:01:31]} 25. Ne3 {[%clk 0:00:45]}  Qc3 {[%clk 0:01:27]} 26. Rbd1 {[%clk 0:00:42]}  a5 {[%clk 0:01:24]} 27. f5 {[%clk 0:00:39]}  Ba6 {[%clk 0:01:16]} 28. Qf2 {[%clk 0:00:22]}  Bxf1 {[%clk 0:01:14]} 29. Bxf1 {[%clk 0:00:09]}  a4 {[%clk 0:00:57]} 30. h5 {[%clk 0:00:05]}  axb3 {[%clk 0:00:56]} 31. axb3 {[%clk 0:00:04]}  Qxb3 {[%clk 0:00:56]} 32. h6 {[%clk 0:00:04]}  Rc3 {[%clk 0:00:51]} 33. Re1 {[%clk 0:00:02]}  Nc4 {[%clk 0:00:42]} 34. Bxc4 {[%clk 0:00:02]}  dxc4 {[%clk 0:00:41]} 35. g6 {[%clk 0:00:02]}  Rxe3 {[%clk 0:00:28]} 36. gxf7+ {[%clk 0:00:01]}  Kxf7 {[%clk 0:00:27]} 37. fxe6+ {[%clk 0:00:01]}  Kxe6 {[%clk 0:00:25]} 38. Rxe3 {[%clk 0:00:02]}  Qd1+ {[%clk 0:00:23]} 39. Kg2 {[%clk 0:00:03]}  Qg4+ {[%clk 0:00:22]} 40. Rg3 {[%clk 0:00:04]}  Qxd4 {[%clk 0:00:21]} 41. Qxd4 {[%clk 0:00:04]}  Rxd4 {[%clk 0:00:20]} 42. hxg7 {[%clk 0:00:05]}  Rd8 {[%clk 0:00:20]} 43. g8=Q+ {[%clk 0:00:05]}  Rxg8 {[%clk 0:00:20]} 44. Rxg8 {[%clk 0:00:06]}  b3 {[%clk 0:00:19]} 45. Rb8 {[%clk 0:00:03]}  Kxe5 {[%clk 0:00:19]} 46. Kf3 {[%clk 0:00:04]}  Kd4 {[%clk 0:00:19]} 47. Ke2 {[%clk 0:00:05]}  Kc3 {[%clk 0:00:19]} 48. Kd1 {[%clk 0:00:05]}  b2 {[%clk 0:00:19]} 49. Rb7 {[%clk 0:00:03]}  h5 {[%clk 0:00:18]} 50. Rb8 {[%clk 0:00:02]}  h4 {[%clk 0:00:18]} 51. Ke2 {[%clk 0:00:02]}  Kc2 {[%clk 0:00:16]} 52. Ke3 {[%clk 0:00:02]}  c3 {[%clk 0:00:16]} 53. Kd4 {[%clk 0:00:02]}  b1=Q {[%clk 0:00:15]} 54. Rxb1 {[%clk 0:00:02]}  Kxb1 {[%clk 0:00:15]} 55. Kxc3 {[%clk 0:00:03]}  h3 {[%clk 0:00:15]} 56. Kd3 {[%clk 0:00:04]}  h2 {[%clk 0:00:16]} 57. Ke2 {[%clk 0:00:05]}  h1=Q {[%clk 0:00:16]} 58. Kf2 {[%clk 0:00:05]}  Qh3 {[%clk 0:00:16]} 0-1


[Site "https://www.chess.com"]

[Event "Titled Tuesday Blitz July 4 Early 2023"]
[White "Dwilewicz, Katarzyna"]
[Black "Kirillov, Dmitry"]
[WhiteFideId "1148486"]
[BlackFideId "34180572"]
[WhiteElo "2342"]
[BlackElo "2509"]
[Result "0-1"]
[Round "6"]
[TimeControl "180+2"]
[Date "2023.07.04"]
[WhiteClock "0:00:00"]
[BlackClock "0:01:39"]
[Board "150"]

1. e4 {[%clk 0:03:00]}  e5 {[%clk 0:03:00]} 2. Nf3 {[%clk 0:02:59]}  Nc6 {[%clk 0:03:01]} 3. Bc4 {[%clk 0:03:00]}  Nf6 {[%clk 0:03:00]} 4. d3 {[%clk 0:03:00]}  Bc5 {[%clk 0:03:01]} 5. O-O {[%clk 0:02:59]}  O-O {[%clk 0:03:01]} 6. h3 {[%clk 0:02:55]}  h6 {[%clk 0:02:59]} 7. c3 {[%clk 0:02:53]}  d6 {[%clk 0:02:59]} 8. Nbd2 {[%clk 0:02:51]}  a6 {[%clk 0:02:59]} 9. Bb3 {[%clk 0:02:51]}  Ba7 {[%clk 0:02:59]} 10. Re1 {[%clk 0:02:49]}  Ne7 {[%clk 0:02:59]} 11. Nf1 {[%clk 0:02:49]}  Ng6 {[%clk 0:02:59]} 12. Ng3 {[%clk 0:02:50]}  c6 {[%clk 0:03:00]} 13. Be3 {[%clk 0:02:48]}  Nf4 {[%clk 0:02:58]} 14. d4 {[%clk 0:02:41]}  Qe7 {[%clk 0:02:43]} 15. Bxf4 {[%clk 0:02:30]}  exf4 {[%clk 0:02:43]} 16. Nf5 {[%clk 0:02:30]}  Bxf5 {[%clk 0:02:41]} 17. exf5 {[%clk 0:02:30]}  Qd7 {[%clk 0:02:41]} 18. Qd3 {[%clk 0:02:19]}  Rfe8 {[%clk 0:02:39]} 19. Kh2 {[%clk 0:02:06]}  d5 {[%clk 0:02:29]} 20. Ne5 {[%clk 0:02:01]}  Qd6 {[%clk 0:02:28]} 21. Qf3 {[%clk 0:01:57]}  Ne4 {[%clk 0:02:23]} 22. Qxf4 {[%clk 0:01:57]}  f6 {[%clk 0:02:20]} 23. Rxe4 {[%clk 0:01:49]}  Kh7 {[%clk 0:01:58]} 24. Re3 {[%clk 0:01:33]}  fxe5 {[%clk 0:01:55]} 25. dxe5 {[%clk 0:01:33]}  Bxe3 {[%clk 0:01:54]} 26. fxe3 {[%clk 0:01:09]}  Qxe5 {[%clk 0:01:53]} 27. Qxe5 {[%clk 0:01:08]}  Rxe5 {[%clk 0:01:52]} 28. Re1 {[%clk 0:00:58]}  Rae8 {[%clk 0:01:51]} 29. Bc2 {[%clk 0:00:58]}  Rxe3 {[%clk 0:01:50]} 30. f6+ {[%clk 0:00:57]}  Kg8 {[%clk 0:01:46]} 31. Rf1 {[%clk 0:00:28]}  Rf8 {[%clk 0:01:45]} 32. g4 {[%clk 0:00:05]}  Rxf6 {[%clk 0:01:44]} 33. Bf5 {[%clk 0:00:03]}  g6 {[%clk 0:01:41]} 34. Bd3 {[%clk 0:00:03]}  Rxf1 {[%clk 0:01:40]} 35. Bxf1 {[%clk 0:00:04]}  Re1 {[%clk 0:01:38]} 36. Kg2 {[%clk 0:00:04]}  Rb1 {[%clk 0:01:38]} 37. b3 {[%clk 0:00:03]}  Rb2+ {[%clk 0:01:38]} 38. Kf3 {[%clk 0:00:04]}  Rxa2 {[%clk 0:01:39]} 39. Bd3 {[%clk 0:00:04]}  Kg7 {[%clk 0:01:39]} 40. Ke3 {[%clk 0:00:03]}  Rb2 {[%clk 0:01:39]} 41. b4 {[%clk 0:00:03]}  Rh2 {[%clk 0:01:39]} 42. Kd4 {[%clk 0:00:00]}  Rxh3 {[%clk 0:01:39]} 0-1


[Site "https://www.chess.com"]

[Event "Titled Tuesday Blitz July 4 Early 2023"]
[White "Shapiro, Daniel"]
[Black "Korkmaz, Necmettin"]
[WhiteFideId "2001780"]
[BlackFideId "6303285"]
[WhiteElo "2334"]
[BlackElo "2508"]
[Result "0-1"]
[Round "6"]
[TimeControl "180+2"]
[Date "2023.07.04"]
[WhiteClock "0:00:00"]
[BlackClock "0:01:43"]
[Board "151"]

1. d4 {[%clk 0:03:00]}  d5 {[%clk 0:02:55]} 2. c4 {[%clk 0:02:57]}  c6 {[%clk 0:02:55]} 3. Nf3 {[%clk 0:02:57]}  Nf6 {[%clk 0:02:55]} 4. Qb3 {[%clk 0:02:56]}  dxc4 {[%clk 0:02:53]} 5. Qxc4 {[%clk 0:02:56]}  Bf5 {[%clk 0:02:53]} 6. Nc3 {[%clk 0:02:55]}  Nbd7 {[%clk 0:02:54]} 7. g3 {[%clk 0:02:55]}  e6 {[%clk 0:02:53]} 8. Bg2 {[%clk 0:02:53]}  Be7 {[%clk 0:02:52]} 9. Qb3 {[%clk 0:02:53]}  Nb6 {[%clk 0:02:48]} 10. O-O {[%clk 0:02:44]}  O-O {[%clk 0:02:48]} 11. Rd1 {[%clk 0:02:17]}  Ne4 {[%clk 0:02:41]} 12. Nd2 {[%clk 0:02:08]}  Nxf2 {[%clk 0:02:05]} 13. Kxf2 {[%clk 0:02:03]}  Qxd4+ {[%clk 0:02:05]} 14. e3 {[%clk 0:02:03]}  Qf6 {[%clk 0:02:04]} 15. Kg1 {[%clk 0:01:58]}  Bc5 {[%clk 0:02:02]} 16. Nde4 {[%clk 0:01:56]}  Qe5 {[%clk 0:01:51]} 17. Nxc5 {[%clk 0:01:52]}  Qxc5 {[%clk 0:01:51]} 18. Bd2 {[%clk 0:01:07]}  Rad8 {[%clk 0:01:50]} 19. Na4 {[%clk 0:00:57]}  Nxa4 {[%clk 0:01:45]} 20. Qxa4 {[%clk 0:00:57]}  Bc2 {[%clk 0:01:45]} 21. Qf4 {[%clk 0:00:41]}  Bxd1 {[%clk 0:01:43]} 22. Rxd1 {[%clk 0:00:00]}  Qc2 {[%clk 0:01:43]} 0-1


[Site "https://www.chess.com"]